fUSD/lending_fUSD_20250812
["ID","MTS","AMOUNT","RATE_DAILY","PERIOD"]
[378814387,1755034254307,-887.94,0.00049315,120]
[378814388,1755034254316,-500.0,0.00049315,120]
[378814389,1755034254326,-400.0,0.00049315,120]
[378814390,1755034254335,-500.0,0.00049315,120]
[378814391,1755034254344,-400.0,0.00049315,120]
[378814392,1755034254354,-500.0,0.00049315,120]
[378814393,1755034254363,-500.0,0.00049315,120]
[378814394,1755034254371,-400.0,0.00049315,7]
[378814395,1755034254380,-500.0,0.00049315,120]
[378814396,1755034254389,-500.0,0.00049315,120]
[378814397,1755034254398,-400.0,0.00049315,120]
[378814398,1755034254407,-500.0,0.00049315,120]
[378814399,1755034254416,-500.0,0.00049315,120]
[378814400,1755034254426,-500.0,0.00049315,120]
[378814401,1755034254435,-500.0,0.00049315,120]
[378814402,1755034254444,-500.0,0.00049315,120]
[378814403,1755034254453,-400.0,0.00049315,120]
[378814404,1755034254462,-500.0,0.00049315,120]
[378814405,1755034254471,-500.0,0.00049315,120]
[378814406,1755034254480,-400.0,0.00049315,120]
[378814407,1755034254490,-407.15,0.00049315,120]
[378814408,1755034254499,-400.0,0.00049315,120]
[378814409,1755034254508,-400.0,0.00049315,120]
[378814410,1755034254518,-827.35,0.00049315,120]
[378814411,1755034254527,-320.33813361,0.00049315,120]
[378814412,1755034254536,-400.0,0.00049315,120]
[378814413,1755034254545,-400.0,0.00049315,120]
[378814414,1755034254555,-400.0,0.00049315,120]
[378814415,1755034254564,-400.0,0.00049315,120]
[378814416,1755034254573,-401.40112432,0.00049315,120]
[378814417,1755034254582,-400.0,0.00049315,120]
[378814418,1755034254592,-1262.79,0.00049315,120]
[378814419,1755034254601,-460.0,0.00049315,120]
[378814420,1755034254610,-400.0,0.00049315,120]
[378814421,1755034254619,-400.0,0.00049315,120]
[378814422,1755034254629,-400.0,0.00049315,120]
[378814423,1755034254638,-400.0,0.00049315,120]
[378814424,1755034254647,-471.12,0.00049315,120]
[378814425,1755034254661,-500.0,0.00049315,120]
[378814426,1755034254670,-400.0,0.00049315,120]
[378814427,1755034254679,-500.0,0.00049315,120]
[378814428,1755034254689,-500.0,0.00049315,120]
[378814429,1755034254699,-400.0,0.00049315,120]
[378814430,1755034254708,-500.0,0.00049315,120]
[378814431,1755034254717,-500.0,0.00049315,120]
[378814432,1755034254727,-400.0,0.00049315,120]
[378814433,1755034254737,-500.0,0.00049315,120]
[378814434,1755034254746,-400.0,0.00049315,120]
[378814435,1755034254755,-500.0,0.00049315,120]
[378814436,1755034254765,-150.0,0.00049315,120]
[378814437,1755034254774,-500.0,0.00049315,120]
[378814438,1755034254784,-500.0,0.00049315,120]
[378814439,1755034254794,-500.0,0.00049315,120]
[378814440,1755034254804,-500.0,0.00049315,120]
[378814441,1755034254814,-500.0,0.00049315,120]
[378814442,1755034254823,-500.0,0.00049315,120]
[378814443,1755034254833,-901.57,0.00049315,120]
[378814444,1755034254842,-500.0,0.00049315,120]
[378814445,1755034254851,-400.0,0.00049315,120]
[378814446,1755034254861,-500.0,0.00049315,120]
[378814447,1755034254870,-500.0,0.00049315,120]
[378814448,1755034254879,-653.27,0.00049315,120]
[378814449,1755034254888,-400.0,0.00049315,120]
[378814450,1755034254898,-230.36982452,0.00049315,120]
[378814451,1755034254908,-500.0,0.00049315,120]
[378814452,1755034254917,-1056.6,0.00049315,120]
[378814453,1755034254927,-151.72107179,0.00049315,120]
[378814454,1755034254936,-500.0,0.00049315,120]
[378814455,1755034254945,-400.0,0.00049315,120]
[378814456,1755034254955,-500.0,0.00049315,120]
[378814457,1755034254964,-500.0,0.00049315,120]
[378814458,1755034255037,-400.0,0.00049315,120]
[378814459,1755034255046,-400.0,0.00049315,120]
[378814460,1755034255056,-500.0,0.00049315,120]
[378814461,1755034255066,-150.0,0.00049315,120]
[378814462,1755034255076,-500.0,0.00049315,120]
[378814463,1755034255085,-1757.68,0.00049315,120]
[378814464,1755034255094,-500.0,0.00049315,120]
[378814465,1755034255103,-400.0,0.00049315,120]
[378814466,1755034255113,-150.0,0.00049315,120]
[378814467,1755034255122,-592.29,0.00049315,120]
[378814468,1755034255131,-500.0,0.00049315,120]
[378814469,1755034255140,-500.0,0.00049315,120]
[378814470,1755034255149,-500.0,0.00049315,120]
[378814471,1755034255158,-400.0,0.00049315,120]
[378814472,1755034255167,-400.0,0.00049315,120]
[378814473,1755034255176,-500.0,0.00049315,120]
[378814474,1755034255186,-500.0,0.00049315,120]
[378814475,1755034255195,-150.0,0.00049315,120]
[378814476,1755034255204,-500.0,0.00049315,120]
[378814477,1755034255213,-500.0,0.00049315,120]
[378814478,1755034255222,-500.0,0.00049315,120]
[378814479,1755034255232,-500.0,0.00049315,120]
[378814480,1755034255242,-151.0,0.00049315,30]
[378814481,1755034255251,-400.0,0.00049315,120]
[378814482,1755034255260,-500.0,0.00049315,120]
[378814483,1755034255269,-150.0,0.00049315,120]
[378814484,1755034255279,-390.93707433,0.00049315,120]
[378814485,1755034255288,-400.0,0.00049315,120]
[378814486,1755034255297,-500.0,0.00049315,120]
[378814487,1755034255306,-500.0,0.00049315,120]
[378814488,1755034255315,-150.0,0.00049315,120]
[378814489,1755034255324,-500.0,0.00049315,120]
[378814490,1755034255333,-500.0,0.00049315,120]
[378814491,1755034255343,-400.0,0.00049315,120]
[378814492,1755034255352,-500.0,0.00049315,120]
[378814493,1755034255361,-359.95960642,0.00049315,120]
[378814494,1755034255370,-500.0,0.00049315,120]
[378814495,1755034255379,-923.22,0.00049315,120]
[378814496,1755034255388,-400.0,0.00049315,120]
[378814497,1755034255397,-500.0,0.00049315,120]
[378814498,1755034255406,-150.0,0.00049315,120]
[378814499,1755034255415,-400.0,0.00049315,120]
[378814500,1755034255425,-500.0,0.00049315,120]
[378814501,1755034255435,-400.0,0.00049315,120]
[378814502,1755034255444,-500.0,0.00049315,120]
[378814503,1755034255453,-500.0,0.00049315,120]
[378814504,1755034255462,-500.0,0.00049315,120]
[378814505,1755034255471,-150.0,0.00049315,120]
[378814506,1755034255480,-500.0,0.00049315,120]
[378814507,1755034255490,-502.0,0.00049315,120]
[378814508,1755034255499,-539.24,0.00049315,120]
[378814509,1755034255508,-151.0,0.00049315,30]
[378814510,1755034255518,-400.0,0.00049315,120]
[378814511,1755034255527,-400.76858311,0.00049315,120]
[378814512,1755034255537,-400.0,0.00049315,120]
[378814513,1755034255547,-500.0,0.00049315,120]
[378814514,1755034255556,-400.0,0.00049315,120]
[378814515,1755034255565,-500.0,0.00049315,120]
[378814516,1755034255574,-400.0,0.00049315,120]
[378814517,1755034255583,-500.0,0.00049315,120]
[378814518,1755034255592,-1056.3,0.00049315,120]
[378814519,1755034255602,-500.0,0.00049315,120]
[378814520,1755034255611,-500.0,0.00049315,120]
[378814521,1755034255620,-500.0,0.00049315,120]
[378814522,1755034255629,-500.0,0.00049315,120]
[378814523,1755034255638,-500.0,0.00049315,120]
[378814524,1755034255648,-400.72623114,0.00049315,120]
[378814525,1755034255661,-500.0,0.00049315,120]
[378814526,1755034255670,-906.0,0.00049315,120]
[378814527,1755034255679,-400.0,0.00049315,120]
[378814528,1755034255688,-456.15,0.00049315,120]
[378814529,1755034255699,-500.0,0.00049315,120]
[378814530,1755034255708,-400.0,0.00049315,120]
[378814531,1755034255718,-655.18,0.00049315,120]
[378814532,1755034255729,-400.0,0.00049315,120]
[378814533,1755034255740,-400.0,0.00049315,120]
[378814534,1755034255749,-400.0,0.00049315,120]
[378814535,1755034255757,-401.10747354,0.00049315,120]
[378814536,1755034255766,-150.0,0.00049315,120]
[378814537,1755034255775,-1021.77,0.00049315,120]
[378814538,1755034255785,-1572.59,0.00049315,120]
[378814539,1755034255795,-400.0,0.00049315,120]
[378814540,1755034255804,-500.0,0.00049315,120]
[378814541,1755034255813,-400.0,0.00049315,120]
[378814542,1755034255822,-400.0,0.00049315,120]
[378814543,1755034255832,-975.01,0.00049315,120]
[378814544,1755034255841,-400.0,0.00049315,7]
[378814545,1755034255850,-150.80529416,0.00049315,120]
[378814546,1755034255859,-400.0,0.00049315,120]
[378814547,1755034255868,-150.0,0.00049315,120]
[378814548,1755034255878,-400.0,0.00049315,120]
[378814549,1755034255887,-2018.83,0.00049315,120]
[378814550,1755034255896,-150.0,0.00049315,120]
[378814551,1755034255905,-400.0,0.00049315,120]
[378814552,1755034255915,-400.0,0.00049315,120]
[378814553,1755034255924,-400.0,0.00049315,120]
[378814554,1755034255933,-400.0,0.00049315,120]
[378814555,1755034255942,-1634.57,0.00049315,120]
[378814556,1755034255951,-151.0,0.00049315,30]
[378814557,1755034255960,-151.0,0.00049315,30]
[378814558,1755034255970,-400.0,0.00049315,120]
[378814559,1755034255979,-400.0,0.00049315,120]
[378814560,1755034255989,-500.0,0.00049315,120]
[378814561,1755034255998,-500.0,0.00049315,120]
[378814562,1755034256007,-500.0,0.00049315,120]
[378814563,1755034256016,-1491.61,0.00049315,120]
[378814564,1755034256025,-500.0,0.00049315,120]
[378814565,1755034256035,-500.0,0.00049315,120]
[378814566,1755034256044,-500.0,0.00049315,120]
[378814567,1755034256053,-403.79882443,0.00049315,120]
[378814568,1755034256062,-524.38170633,0.00049315,120]
[378814569,1755034256072,-400.0,0.00049315,120]
[378814570,1755034256082,-400.0,0.00049315,120]
[378814571,1755034256091,-462.73,0.00049315,120]
[378814572,1755034256100,-151.0,0.00049315,30]
[378814573,1755034256110,-400.0,0.00049315,120]
[378814574,1755034256120,-400.0,0.00049315,120]
[378814575,1755034256129,-406.56,0.00049315,120]
[378814576,1755034256139,-400.0,0.00049315,120]
[378814577,1755034256148,-400.0,0.00049315,120]
[378814578,1755034256158,-1664.76,0.00049315,120]
[378814579,1755034256167,-1478.84,0.00049315,120]
[378814580,1755034256176,-585.08,0.00049315,120]
[378814581,1755034256185,-400.0,0.00049315,120]
[378814582,1755034256194,-655.42,0.00049315,120]
[378814583,1755034256203,-655.42,0.00049315,120]
[378814584,1755034256213,-464.99168526,0.00049315,120]
[378814585,1755034256222,-1057.22,0.00049315,120]
[378814586,1755034256230,-655.42,0.00049315,120]
[378814587,1755034256239,-1674.59,0.00049315,120]
[378814588,1755034256249,-655.42,0.00049315,120]
[378814589,1755034256258,-655.42,0.00049315,120]
[378814590,1755034256267,-400.0,0.00049315,120]
[378814591,1755034256275,-655.42,0.00049315,120]
[378814592,1755034256285,-655.42,0.00049315,120]
[378814593,1755034256294,-400.0,0.00049315,120]
[378814594,1755034256303,-655.42,0.00049315,120]
[378814595,1755034256313,-602.41,0.00049315,120]
[378814596,1755034256322,-151.0,0.00049315,30]
[378814597,1755034256331,-477.57,0.00049315,120]
[378814598,1755034256340,-1517.47,0.00049315,120]
[378814599,1755034256349,-400.0,0.00049315,120]
[378814600,1755034256358,-529.21,0.00049315,120]
[378814601,1755034256367,-400.0,0.00049315,120]
[378814602,1755034256376,-400.0,0.00049315,120]
[378814603,1755034256385,-576.1,0.00049315,120]
[378814604,1755034256394,-576.19,0.00049315,120]
[378814605,1755034256403,-400.0,0.00049315,120]
[378814606,1755034256412,-598.47,0.00049315,120]
[378814607,1755034256422,-400.0,0.00049315,120]
[378814608,1755034256430,-400.0,0.00049315,120]
[378814609,1755034256439,-2451.82,0.00049315,120]
[378814610,1755034256449,-419.27,0.00049315,120]
[378814611,1755034256458,-400.0,0.00049315,120]
[378814612,1755034256467,-1219.05,0.00049315,120]
[378814613,1755034256476,-400.0,0.00049315,120]
[378814614,1755034256486,-1883.37,0.00049315,120]
[378814615,1755034256496,-400.74154546,0.00049315,120]
[378814616,1755034256506,-516.89,0.00049315,120]
[378814617,1755034256515,-400.0,0.00049315,120]
[378814618,1755034256524,-400.0,0.00049315,120]
[378814619,1755034256533,-16937.28,0.00049315,120]
[378814620,1755034256543,-400.0,0.00049315,120]
[378814621,1755034256552,-400.0,0.00049315,120]
[378814622,1755034256562,-973.52,0.00049315,120]
[378814623,1755034256571,-1127.94,0.00049315,120]
[378814624,1755034256581,-460.0,0.00049315,120]
[378814625,1755034256590,-561.96,0.00049315,120]
[378814626,1755034256599,-151.0,0.00049315,30]
[378814627,1755034256608,-400.0,0.00049315,120]
[378814628,1755034256618,-687.74,0.00049315,120]
[378814629,1755034256627,-2060.0,0.00049315,30]
[378814630,1755034256637,-400.0,0.00049315,120]
[378814631,1755034256647,-151.0,0.00049315,30]
[378814632,1755034256660,-400.0,0.00049315,120]
[378814633,1755034256670,-491.29,0.00049315,120]
[378814634,1755034256680,-400.0,0.00049315,120]
[378814635,1755034256689,-500.0,0.00049315,120]
[378814636,1755034256700,-421.12,0.00049315,120]
[378814637,1755034256709,-400.0,0.00049315,120]
[378814638,1755034256719,-400.0,0.00049315,120]
[378814639,1755034256729,-1302.81,0.00049315,120]
[378814640,1755034256739,-400.0,0.00049315,120]
[378814641,1755034256751,-1624.83,0.00049315,120]
[378814642,1755034256760,-400.0,0.00049315,120]
[378814643,1755034256770,-150.0,0.00049315,120]
[378814644,1755034256779,-400.0,0.00049315,120]
[378814645,1755034256789,-400.0,0.00049315,120]
[378814646,1755034256798,-400.5764102,0.00049315,120]
[378814647,1755034256808,-400.0,0.00049315,120]
[378814648,1755034256817,-400.0,0.00049315,120]
[378814649,1755034256828,-230.460962,0.00049315,30]
[378814650,1755034256838,-400.0,0.00049315,120]
[378814651,1755034256848,-400.0,0.00049315,120]
[378814652,1755034256859,-150.0,0.00049315,120]
[378814653,1755034256868,-400.0,0.00049315,120]
[378814654,1755034256877,-500.0,0.00049315,120]
[378814655,1755034256887,-151.0,0.00049315,30]
[378814656,1755034256896,-151.0,0.00049315,30]
[378814657,1755034256906,-150.0,0.00049315,2]
[378814658,1755034256915,-526.75266522,0.00049315,120]
[378814659,1755034256924,-400.0,0.00049315,120]
[378814660,1755034256934,-589.79,0.00049315,120]
[378814661,1755034256943,-150.0,0.00049315,120]
[378814662,1755034256953,-673.79,0.00049315,120]
[378814663,1755034256962,-1216.08,0.00049315,120]
[378814664,1755034256972,-500.0,0.00049315,120]
[378814665,1755034256981,-400.0,0.00049315,120]
[378814666,1755034256991,-870.7,0.00049315,120]
[378814667,1755034257001,-500.0,0.00049315,120]
[378814668,1755034257010,-400.0,0.00049315,120]
[378814669,1755034257020,-253.415025,0.00049315,30]
[378814670,1755034257030,-400.0,0.00049315,120]
[378814671,1755034257039,-1696.1,0.00049315,120]
[378814672,1755034257049,-910.32,0.00049315,120]
[378814673,1755034257059,-400.0,0.00049315,120]
[378814674,1755034257068,-1000.83,0.00049315,120]
[378814675,1755034257077,-400.0,0.00049315,120]
[378814676,1755034257087,-1237.03,0.00049315,120]
[378814677,1755034257096,-400.0,0.00049315,120]
[378814678,1755034257105,-400.0,0.00049315,120]
[378814679,1755034257115,-400.0,0.00049315,120]
[378814680,1755034257125,-400.0,0.00049315,120]
[378814681,1755034257135,-400.0,0.00049315,120]
[378814682,1755034257144,-500.0,0.00049315,120]
[378814683,1755034257153,-400.77012378,0.00049315,120]
[378814684,1755034257163,-176.868582,0.00049315,120]
[378814685,1755034257172,-834.02,0.00049315,120]
[378814686,1755034257182,-400.0,0.00049315,120]
[378814687,1755034257192,-445.15,0.00049315,120]
[378814688,1755034257201,-400.0,0.00049315,120]
[378814689,1755034257210,-400.0,0.00049315,120]
[378814690,1755034257220,-1708.87,0.00049315,120]
[378814691,1755034257230,-400.0,0.00049315,120]
[378814692,1755034257240,-400.0,0.00049315,120]
[378814693,1755034257250,-151.0,0.00049315,30]
[378814694,1755034257259,-400.0,0.00049315,120]
[378814695,1755034257268,-408.75901173,0.00049315,120]
[378814696,1755034257278,-400.0,0.00049315,120]
[378814697,1755034257287,-1479.36,0.00049315,120]
[378814698,1755034257296,-400.0,0.00049315,120]
[378814699,1755034257309,-425.4,0.00049315,120]
[378814700,1755034257320,-400.0,0.00049315,120]
[378814701,1755034257330,-210.200207,0.00049315,120]
[378814702,1755034257339,-400.0,0.00049315,120]
[378814703,1755034257349,-1505.79,0.00049315,120]
[378814704,1755034257358,-400.0,0.00049315,120]
[378814705,1755034257368,-3347.85,0.00049315,120]
[378814706,1755034257377,-400.0,0.00049315,120]
[378814707,1755034257387,-714.21,0.00049315,120]
[378814708,1755034257396,-1788.21,0.00049315,120]
[378814709,1755034257405,-400.0,0.00049315,120]
[378814710,1755034257415,-1363.33,0.00049315,120]
[378814711,1755034257425,-3467.33,0.00049315,120]
[378814712,1755034257435,-400.0,0.00049315,120]
[378814713,1755034257444,-400.0,0.00049315,120]
[378814714,1755034257453,-400.0,0.00049315,120]
[378814715,1755034257462,-336.16576768,0.00049315,120]
[378814716,1755034257472,-640.23,0.00049315,120]
[378814717,1755034257481,-400.0,0.00049315,120]
[378814718,1755034257492,-483.72200833,0.00049315,120]
[378814719,1755034257502,-468.30166442,0.00049315,120]
[378814720,1755034257511,-151.0,0.00049315,30]
[378814721,1755034257521,-400.0,0.00049315,120]
[378814722,1755034257531,-400.0,0.00049315,120]
[378814723,1755034257541,-400.0,0.00049315,120]
[378814724,1755034257551,-400.0,0.00049315,120]
[378814725,1755034257560,-400.0,0.00049315,120]
[378814726,1755034257570,-2222.54,0.00049315,120]
[378814727,1755034257579,-400.0,0.00049315,120]
[378814728,1755034257590,-754.46,0.00049315,120]
[378814729,1755034257606,-865.67,0.00049315,120]
[378814730,1755034257622,-400.0,0.00049315,120]
[378814731,1755034257636,-400.0,0.00049315,120]
[378814732,1755034257646,-400.0,0.00049315,120]
[378814733,1755034257659,-636.9,0.00049315,120]
[378814734,1755034257674,-1425.75,0.00049315,120]
[378814735,1755034257691,-400.0,0.00049315,120]
[378814736,1755034257701,-400.0,0.00049315,120]
[378814737,1755034257711,-400.0,0.00049315,120]
[378814738,1755034257720,-400.0,0.00049315,120]
[378814739,1755034257731,-389.88999195,0.00049315,120]
[378814740,1755034257741,-534.39,0.00049315,120]
[378814741,1755034257751,-1643.25,0.00049315,120]
[378814742,1755034257762,-400.0,0.00049315,120]
[378814743,1755034257772,-534.88,0.00049315,120]
[378814744,1755034257781,-863.95,0.00049315,120]
[378814745,1755034257791,-516.35,0.00049315,120]
[378814746,1755034257801,-400.0,0.00049315,120]
[378814747,1755034257810,-1204.59,0.00049315,120]
[378814748,1755034257820,-400.0,0.00049315,120]
[378814749,1755034257830,-400.0,0.00049315,120]
[378814750,1755034257839,-737.76,0.00049315,120]
[378814751,1755034257849,-400.0,0.00049315,120]
[378814752,1755034257859,-1507.09,0.00049315,120]
[378814753,1755034257869,-400.0,0.00049315,120]
[378814754,1755034257878,-400.0,0.00049315,120]
[378814755,1755034257888,-400.0,0.00049315,120]
[378814756,1755034257897,-522.9,0.00049315,120]
[378814757,1755034257907,-895.72,0.00049315,120]
[378814758,1755034257916,-400.0,0.00049315,120]
[378814759,1755034257926,-400.0,0.00049315,120]
[378814760,1755034257936,-400.0,0.00049315,120]
[378814761,1755034257945,-1000.0,0.00049315,120]
[378814762,1755034257955,-400.0,0.00049315,120]
[378814763,1755034257964,-1289.23,0.00049315,120]
[378814764,1755034257974,-151.0,0.00049315,30]
[378814765,1755034257983,-2180.99261959,0.00049315,120]
[378814766,1755034258802,-2040.10738041,0.00049315,120]
[378814767,1755034258812,-400.0,0.00049315,120]
[378814768,1755034258822,-584.46,0.00049315,120]
[378814769,1755034258831,-906.49551548,0.00049315,120]
[378814770,1755034258869,-637.26448452,0.00049315,120]
[378814771,1755034258879,-400.0,0.00049315,120]
[378814772,1755034258888,-400.0,0.00049315,120]
[378814773,1755034258897,-255.27246475,0.00049315,120]
[378814774,1755034258906,-44.21240153,0.00049315,30]
[378814775,1755034258917,-106.78759847,0.00049315,30]
[378814776,1755034258927,-167.74204361,0.00049315,120]
[378814777,1755034258939,-232.25795639,0.00049315,120]
[378814778,1755034258948,-1031.87,0.00049315,120]
[378814779,1755034258957,-400.0,0.00049315,120]
[378814780,1755034258966,-400.0,0.00049315,120]
[378814781,1755034258975,-400.0,0.00049315,120]
[378814782,1755034258985,-738.96,0.00049315,120]
[378814783,1755034258994,-400.0,0.00049315,120]
[378814784,1755034259003,-529.99,0.00049315,120]
[378814785,1755034259012,-444.63653978,0.00049315,120]
[378814786,1755034259022,-726.41,0.00049315,120]
[378814787,1755034259031,-491.1083093,0.00049315,120]
[378814788,1755034259059,-565.2516907,0.00049315,120]
[378814789,1755034259069,-400.0,0.00049315,120]
[378814790,1755034259078,-400.0,0.00049315,120]
[378814791,1755034259087,-400.0,0.00049315,120]
[378814792,1755034259096,-400.79925206,0.00049315,120]
[378814793,1755034259106,-776.37,0.00049315,120]
[378814794,1755034259115,-891.05,0.00049315,120]
[378814795,1755034259124,-167.35877199,0.00049315,120]
[378814796,1755034259135,-232.64122801,0.00049315,120]
[378814797,1755034259145,-398.26897142,0.00049315,120]
[378814798,1755034259526,-1888.0,0.00039067,3]
[378814799,1755034259535,-3776.0,0.00041307,3]
[378814800,1755034259544,-151.0,0.000488,30]
[378814801,1755034259554,-738.70102858,0.00049315,120]
[378814802,1755034259563,-400.0,0.00049315,120]
[378814803,1755034259572,-151.0,0.00049315,30]
[378814804,1755034259581,-400.0,0.00049315,120]
[378814805,1755034259590,-400.0,0.00049315,120]
[378814806,1755034259599,-403.8968981,0.00049315,120]
[378814807,1755034259608,-400.0,0.00049315,120]
[378814808,1755034259618,-1071.16,0.00049315,120]
[378814809,1755034259627,-400.0,0.00049315,120]
[378814810,1755034259636,-883.02,0.00049315,120]
[378814811,1755034259646,-400.0,0.00049315,120]
[378814812,1755034259659,-610.61,0.00049315,120]
[378814813,1755034259668,-704.36,0.00049315,120]
[378814814,1755034259677,-2346.21,0.00049315,120]
[378814815,1755034259687,-400.0,0.00049315,120]
[378814816,1755034259698,-400.0,0.00049315,120]
[378814817,1755034259707,-400.0,0.00049315,120]
[378814818,1755034259716,-400.0,0.00049315,120]
[378814819,1755034259727,-400.0,0.00049315,120]
[378814820,1755034259737,-1513.39,0.00049315,120]
[378814821,1755034259747,-1185.65,0.00049315,120]
[378814822,1755034259756,-500.0,0.00049315,2]
[378814823,1755034259765,-151.0,0.00049315,30]
[378814824,1755034259775,-400.0,0.00049315,120]
[378814825,1755034259784,-445.83,0.00049315,120]
[378814826,1755034259794,-400.0,0.00049315,120]
[378814827,1755034259804,-400.0,0.00049315,120]
[378814828,1755034259814,-560.92,0.00049315,120]
[378814829,1755034259823,-711.39,0.00049315,120]
[378814830,1755034259833,-2027.29,0.00049315,120]
[378814831,1755034259842,-400.0,0.00049315,120]
[378814832,1755034259852,-400.0,0.00049315,120]
[378814833,1755034259861,-128.75536147,0.00049315,120]
[378814834,1755034259880,-460.92820876,0.00049315,120]
[378814835,1755034259891,-353.15642977,0.00049315,120]
[378814836,1755034259900,-400.0,0.00049315,120]
[378814837,1755034259909,-400.0,0.00049315,120]
[378814838,1755034259919,-1257.2,0.00049315,120]
[378814839,1755034259928,-1000.0,0.00049315,120]
[378814840,1755034259937,-400.0,0.00049315,120]
[378814841,1755034259946,-943.43,0.00049315,120]
[378814842,1755034259955,-400.0,0.00049315,120]
[378814843,1755034259965,-435.14,0.00049315,120]
[378814844,1755034259974,-400.0,0.00049315,120]
[378814845,1755034259984,-735.03,0.00049315,120]
[378814846,1755034259993,-151.0,0.00049315,30]
[378814847,1755034260003,-400.0,0.00049315,120]
[378814848,1755034260012,-517.37,0.00049315,120]
[378814849,1755034260022,-400.0,0.00049315,120]
[378814850,1755034260032,-400.0,0.00049315,120]
[378814851,1755034260042,-400.0,0.00049315,120]
[378814852,1755034260052,-400.0,0.00049315,120]
[378814853,1755034260062,-400.0,0.00049315,120]
[378814854,1755034260071,-400.0,0.00049315,120]
[378814855,1755034260080,-1186.86,0.00049315,120]
[378814856,1755034260090,-400.0,0.00049315,5]
[378814857,1755034260100,-400.0,0.00049315,120]
[378814858,1755034260109,-1812.44,0.00049315,120]
[378814859,1755034260118,-400.0,0.00049315,120]
[378814860,1755034260129,-400.57146005,0.00049315,120]
[378814861,1755034260138,-400.0,0.00049315,120]
[378814862,1755034260147,-1419.97,0.00049315,120]
[378814863,1755034260156,-400.0,0.00049315,120]
[378814864,1755034260166,-400.0,0.00049315,120]
[378814865,1755034260175,-400.0,0.00049315,120]
[378814866,1755034260184,-400.0,0.00049315,120]
[378814867,1755034260193,-680.78,0.00049315,120]
[378814868,1755034260202,-2778.07,0.00049315,120]
[378814869,1755034260212,-400.0,0.00049315,120]
[378814870,1755034260221,-400.0,0.00049315,120]
[378814871,1755034260231,-400.0,0.00049315,120]
[378814872,1755034260240,-400.0,0.00049315,120]
[378814873,1755034260249,-400.0,0.00049315,120]
[378814874,1755034260258,-402.89136878,0.00049315,120]
[378814875,1755034260268,-400.0,0.00049315,120]
[378814876,1755034260277,-400.0,0.00049315,120]
[378814877,1755034260286,-422.19,0.00049315,120]
[378814878,1755034260295,-400.0,0.00049315,120]
[378814879,1755034260305,-400.0,0.00049315,120]
[378814880,1755034260314,-400.0,0.00049315,120]
[378814881,1755034260323,-1717.21,0.00049315,120]
[378814882,1755034260332,-400.0,0.00049315,120]
[378814883,1755034260342,-151.0,0.00049315,30]
[378814884,1755034260351,-400.0,0.00049315,120]
[378814885,1755034260360,-1362.28,0.00049315,120]
[378814886,1755034260370,-400.0,0.00049315,120]